bitfinex/quotes_ETHUSD_20250914
["timestamp","ask_amount","ask_price","bid_price","bid_amount"]
[1757858781507,13.07462886,4616.8,4616.7,1e-08]
[1757858781698,14.52372476,4616.8,4616.7,1e-08]
[1757858782485,13.77412476,4616.8,4616.7,0.28870001]
[1757858783095,5.37418103,4616.8,4616.7,0.74290001]
[1757858783293,5.37418103,4616.8,4616.7,1.20020001]
[1757858783294,9.01418103,4616.8,4616.7,1.20020001]
[1757858784911,9.01418103,4616.8,4616.7,0.74290001]
[1757858785504,9.01618103,4616.8,4616.7,0.74290001]
[1757858785691,10.46547612,4616.8,4616.7,0.28870001]
[1757858786013,10.46547612,4616.8,4616.7,1e-08]
[1757858786189,10.46547612,4616.8,4616.7,0.28870001]
[1757858786381,10.46547612,4616.8,4616.7,1e-08]
[1757858787179,5.37618103,4616.8,4616.7,0.74290001]
[1757858787384,8.89471399,4616.8,4616.7,1.40291967]
[1757858788705,3.72871157,4616.8,4616.7,1.40291967]
[1757858789019,5.89471399,4616.8,4616.7,1.40291967]
[1757858790222,5.89471399,4616.8,4616.7,0.94561967]
[1757858792491,3.72871157,4616.8,4616.7,0.94561967]
[1757858792698,3.72871157,4616.8,4616.7,1.40291967]
[1757858792894,5.89471399,4616.8,4616.7,1.40291967]
[1757858793749,5.89471399,4616.8,4616.7,0.94561967]
[1757858794626,3.72871157,4616.8,4616.7,0.94561967]
[1757858794829,0.002,4616.8,4616.7,2.19491967]
[1757858795028,0.002,4616.8,4616.7,4.58272717]
[1757858795729,3.641,4617.3,4617.2,2.95781477]
[1757858795730,0.002,4617.3,4617.2,2.95781477]
[1757858795905,0.002,4617.3,4617.2,4.36073443]
[1757858796728,0.002,4617.3,4617.2,4.38239257]
[1757858796920,0.002,4617.3,4617.2,5.02636272]
[1757858799642,0.002,4617.3,4617.2,8.02636272]
[1757858801441,1e-08,4617.6,4617.5,2.95767406]
[1757858801745,1e-08,4617.6,4617.5,6.18205046]
[1757858801912,1e-08,4617.6,4617.5,8.53719943]
[1757858802341,1e-08,4617.6,4617.5,12.17519943]
[1757858803222,1e-08,4617.6,4617.5,12.17369731]
[1757858804825,0.002,4618.7,4618.5,2.95720515]
[1757858805018,0.002,4618.7,4618.5,11.45742269]
[1757858805215,1e-08,4618.8,4618.7,2.16511139]
[1757858805443,1e-08,4618.8,4618.7,6.17998004]
[1757858805643,1e-08,4618.8,4618.7,7.35852893]
[1757858807548,1e-08,4618.8,4618.7,10.99552893]
[1757858807844,1e-08,4618.8,4618.7,12.61402934]
[1757858808048,1e-08,4618.8,4618.7,12.72202934]
[1757858810025,1e-08,4618.8,4618.7,12.72110893]
[1757858811753,1e-08,4618.8,4618.7,12.72010893]
[1757858812450,1e-08,4618.8,4618.7,9.08410893]
[1757858812657,1e-08,4618.8,4618.7,12.71910893]
[1757858813230,1e-08,4618.8,4618.7,7.09190893]
[1757858813460,0.74860001,4618.8,4618.7,10.72690893]
[1757858813636,0.74860001,4618.8,4618.7,11.51890893]
[1757858813965,0.28830001,4618.8,4618.7,11.51890893]
[1757858814259,0.28830001,4618.8,4618.7,10.72690893]
[1757858814461,0.28830001,4618.8,4618.7,11.51890893]
[1757858815740,0.28830001,4618.8,4618.7,9.35379754]
[1757858815942,0.28830001,4618.8,4618.7,3.83529713]
[1757858815943,1.17460001,4618.8,4618.7,3.83529713]
[1757858816273,0.71860001,4618.8,4618.7,6.00040852]
[1757858816652,0.71860001,4618.8,4618.7,6.79240852]
[1757858816653,0.28830001,4618.8,4618.7,6.79240852]
[1757858816959,0.71860001,4618.8,4618.7,6.79240852]
[1757858819466,0.72060001,4618.8,4618.7,6.79240852]
[1757858819836,0.00200001,4618.8,4618.7,7.85436948]
[1757858820041,0.00200001,4618.8,4618.7,8.64276948]
[1757858820861,0.00200001,4618.8,4618.7,8.14496948]
[1757858821063,0.00200001,4618.8,4618.7,7.85436948]
[1757858821064,0.31020001,4618.8,4618.7,7.85436948]
[1757858821437,0.74050001,4618.8,4618.7,7.85436948]
[1757858822368,0.00200001,4618.8,4618.7,7.85436948]
[1757858823269,0.00200001,4618.8,4618.7,8.64276948]
[1757858823767,0.00200001,4618.8,4618.7,8.14496948]
[1757858823972,0.00200001,4618.8,4618.7,0.99229713]
[1757858823973,0.31020001,4618.8,4618.7,0.99229713]
[1757858824173,1.19650001,4618.8,4618.7,3.83529713]
[1757858824341,0.31020001,4618.8,4618.7,6.00040852]
[1757858824537,0.00200001,4618.8,4618.7,6.79240852]
[1757858825340,0.00200001,4618.8,4618.7,7.12692828]
[1757858825539,0.31020001,4618.8,4618.7,7.12692828]
[1757858826139,0.74050001,4618.8,4618.7,7.12692828]
[1757858827157,0.31020001,4618.8,4618.7,7.12692828]
[1757858827364,0.00200001,4618.8,4618.7,7.41752828]
[1757858827605,0.00200001,4618.8,4618.7,8.02332828]
[1757858827804,0.00200001,4618.8,4618.7,8.48282828]
[1757858830179,0.00200001,4618.8,4618.7,8.02332828]
[1757858830888,0.00200001,4618.8,4618.7,8.48282828]
[1757858831749,0.00200001,4618.8,4618.7,8.02332828]
[1757858832265,0.00200001,4618.8,4618.7,8.48282828]
[1757858832792,0.00200001,4618.8,4618.7,11.48282828]
[1757858834076,0.00200001,4618.8,4618.7,7.84782828]
[1757858834276,0.00200001,4618.8,4618.7,11.48182828]
[1757858836295,0.00200001,4618.8,4618.7,13.03425966]
[1757858836458,0.00200001,4618.8,4618.7,11.48182828]
[1757858836658,0.00200001,4618.8,4618.7,13.03425966]
[1757858836992,0.00200001,4618.8,4618.7,11.48182828]
[1757858838377,0.00200001,4618.8,4618.7,13.03325966]
[1757858838693,0.00200001,4618.8,4618.7,12.57375966]
[1757858840010,0.00200001,4618.8,4618.7,11.49432828]
[1757858841429,1e-08,4619.2,4618.9,2.16499414]
[1757858841712,0.002,4619.3,4618.8,0.792]
[1757858841713,0.002,4619.3,4619.2,5.95687703]
[1757858841864,0.002,4619.3,4619.2,10.21227416]
[1757858842064,0.002,4619.3,4619.2,11.15657416]
[1757858842306,0.00075794,4619.8,4619.7,2.16464272]
[1757858842616,0.00075794,4619.8,4619.7,13.04950622]
[1757858842828,0.00075794,4619.8,4619.7,12.73867057]
[1757858843827,0.00075794,4619.8,4619.7,11.18861127]
[1757858844632,0.00075794,4619.8,4619.7,10.98831414]
[1757858844837,0.00075794,4619.8,4619.7,11.19000776]
[1757858845001,0.00075794,4619.8,4619.7,13.15178584]
[1757858845327,0.00075794,4619.8,4619.7,12.68048584]
[1757858846370,0.00075794,4619.8,4619.7,12.36638584]
[1757858847486,0.00075794,4619.8,4619.7,12.68048584]
[1757858847694,0.00075794,4619.8,4619.7,13.15178584]
[1757858848093,0.31175794,4619.8,4619.7,12.36638584]
[1757858848328,0.76715794,4619.8,4619.7,8.73338584]
[1757858848499,1.23545794,4619.8,4619.7,13.15738584]
[1757858848894,1.23545794,4619.8,4619.7,8.73338584]
[1757858849101,1.23545794,4619.8,4619.7,12.36538584]
[1757858849791,0.76715794,4619.8,4619.7,12.36538584]
[1757858850828,0.00075794,4619.8,4619.7,13.15738584]
[1757858851129,0.00075794,4619.8,4619.7,13.94278584]
[1757858852022,0.00075794,4619.8,4619.7,15.49284514]
[1757858852222,0.00075794,4619.8,4619.7,13.94278584]
[1757858852824,0.00075794,4619.8,4619.7,15.02154514]
[1757858853033,0.00075794,4619.8,4619.7,13.47148584]
[1757858853541,0.31175794,4619.8,4619.7,13.15738584]
[1757858853861,0.76715794,4619.8,4619.7,9.52538584]
[1757858854019,0.31175794,4619.8,4619.7,13.15738584]
[1757858854215,0.00075794,4619.8,4619.7,13.15738584]
[1757858854534,0.00075794,4619.8,4619.7,15.02154514]
[1757858854710,0.00075794,4619.8,4619.7,13.47148584]
[1757858855246,1e-08,4620.3,4620.2,2.95640846]
[1757858855421,0.082,4620.8,4620.7,2.16417425]
[1757858855611,0.082,4620.8,4620.7,10.85905688]
[1757858855941,0.082,4620.8,4620.7,9.41996787]
[1757858857322,0.082,4620.8,4620.7,10.96598261]
[1757858857947,0.082,4620.8,4620.7,11.43728261]
[1757858858270,0.082,4620.8,4620.7,11.41752062]
[1757858858560,0.082,4620.8,4620.7,12.96302176]
[1757858859043,0.082,4620.8,4620.7,12.49172176]
[1757858859215,0.393,4620.8,4620.7,10.63212062]
[1757858859423,0.8484,4620.8,4620.7,10.63212062]
[1757858860026,0.393,4620.8,4620.7,7.00012062]
[1757858860231,0.8484,4620.8,4620.7,10.63112062]
[1757858861748,1.3167,4620.8,4620.7,7.79212062]
[1757858861948,1.3167,4620.8,4620.7,11.42312062]
[1757858862464,1.3167,4620.8,4620.7,2.47386787]
[1757858862756,1.3167,4620.8,4620.7,3.94069362]
[1757858863056,1.3167,4620.8,4620.7,3.83269362]
[1757858863557,1.3167,4620.8,4620.7,0.20169362]
[1757858866142,1.3167,4620.8,4620.7,0.20153253]
[1757858866143,3.48087003,4620.8,4620.7,0.20153253]
[1757858866343,3.82895703,4620.8,4620.7,0.20153253]
[1757858866543,2.27219894,4620.7,4619.9,0.108]
[1757858866862,2.27219894,4620.7,4620.0,3.8315887]
[1757858867043,0.9412,4620.6,4620.1,0.2015887]
[1757858867245,0.9412,4620.6,4620.0,3.63]
[1757858867246,3.10542978,4620.6,4620.2,0.2015887]
[1757858867444,3.10542978,4620.6,4620.3,0.2015887]
[1757858867667,0.9412,4620.5,4620.4,0.2015887]
[1757858867965,1.2555,4620.5,4620.4,0.2015887]
[1757858868891,3.8155489,4620.5,4620.4,0.2015887]
[1757858869070,3.41976793,4620.5,4620.4,0.2015887]
[1757858869561,1.2555,4620.5,4620.4,0.2015887]
[1757858872460,0.7683,4620.5,4620.4,0.2015887]
[1757858872765,0.3143,4620.5,4620.4,0.2015887]
[1757858872975,0.3143,4620.5,4620.4,2.36590347]
[1757858873335,0.082,4620.8,4620.7,2.16417425]
[1757858873534,0.082,4620.8,4620.7,2.36576295]
[1757858873751,0.3934,4620.8,4620.7,2.36576295]
[1757858874668,0.082,4620.8,4620.7,3.14976295]
[1757858874965,0.082,4620.8,4620.7,3.25776295]
[1757858875158,0.082,4620.8,4620.7,3.72607604]
[1757858875955,0.082,4620.8,4620.7,3.42627604]
[1757858876268,0.3934,4620.8,4620.7,3.42627604]
[1757858877363,0.3934,4620.8,4620.7,2.47376295]
[1757858878553,0.082,4620.8,4620.7,2.47376295]
[1757858878750,0.082,4620.8,4620.7,3.25776295]
[1757858880282,0.082,4620.8,4620.7,2.47376295]
[1757858880844,0.082,4620.8,4620.7,3.25776295]
[1757858881040,0.082,4620.8,4620.7,4.18460657]
[1757858881572,0.082,4620.8,4620.7,5.42806483]
[1757858883959,0.082,4620.8,4620.7,8.58496483]
[1757858885972,0.082,4620.8,4620.7,8.58396483]
[1757858886874,0.082,4620.8,4620.7,4.95496483]
[1757858887198,0.082,4620.8,4620.7,8.58396483]
[1757858889664,0.3934,4620.8,4620.7,1.10679058]
[1757858889864,0.8682,4620.8,4620.7,5.99476295]
[1757858890292,0.3934,4620.8,4620.7,5.99476295]
[1757858890505,0.8682,4620.8,4620.7,0.2015887]
[1757858890699,1.3637,4620.8,4620.7,3.8305887]
[1757858890993,1.3637,4620.8,4620.7,0.2015887]
[1757858895102,1.71646922,4620.8,4620.7,0.2015887]
[1757858895409,3.52782742,4620.8,4620.7,0.2015887]
[1757858896501,3.52782742,4620.8,4619.9,2.53795675]
[1757858896502,2.1642598,4620.6,4619.9,2.53795675]
[1757858896714,0.4813,4620.7,4619.8,2.16558609]
[1757858896875,0.3047,4619.9,4619.8,2.16558609]
[1757858897307,0.3047,4619.9,4619.8,0.001]
[1757858898105,0.3047,4619.9,4619.8,2.16559586]
[1757858899004,0.7541,4619.9,4619.8,0.001]
[1757858901277,0.7541,4619.9,4619.8,2.16559586]
[1757858901704,0.7541,4619.9,4619.8,0.001]
[1757858901875,0.082,4620.8,4619.8,2.95698898]
[1757858902074,0.082,4620.8,4620.5,2.16422204]
[1757858902294,0.082,4620.8,4620.6,0.02164221]
[1757858902600,0.082,4620.8,4620.6,2.18586189]
[1757858902906,0.082,4620.8,4620.7,2.95557425]
[1757858903114,1e-08,4620.8,4620.7,8.06772069]
[1757858903476,1e-08,4620.8,4620.7,11.69672069]
[1757858904321,0.002,4621.8,4621.3,0.792]
[1757858904473,0.002,4621.8,4621.7,7.50301243]
[1757858904782,0.002,4621.8,4621.7,9.29376972]
[1757858905110,0.002,4621.8,4621.7,12.31704926]
[1757858905283,0.002,4621.8,4621.7,13.86295237]
[1757858905613,0.08,4622.8,4622.7,2.16323793]
[1757858905912,0.08,4622.8,4622.7,5.79223793]
[1757858906115,0.08,4622.8,4622.7,6.58363793]
[1757858907588,0.08,4622.8,4622.7,8.73774338]
[1757858908480,0.08,4622.8,4622.7,8.93843725]
[1757858908925,0.08,4622.8,4622.7,8.49533725]
[1757858909424,0.08,4622.8,4622.7,3.28293725]
[1757858909425,0.3847,4622.8,4622.7,3.28293725]
[1757858909622,0.8341,4622.8,4622.7,5.9919318]
[1757858909916,0.8341,4622.8,4622.7,0.20069387]
[1757858910117,0.8341,4622.8,4622.7,5.9919318]
[1757858910306,0.08,4622.8,4622.7,6.78320193]
[1757858910505,0.08,4622.8,4622.7,8.28705412]
[1757858911315,0.08,4622.8,4622.7,7.84395412]
[1757858911616,1e-08,4622.8,4622.7,12.07905412]
[1757858911988,1e-08,4622.8,4622.7,12.18705412]
[1757858912885,1e-08,4622.8,4622.7,11.76095412]
[1757858913494,1e-08,4622.8,4622.7,12.20405412]
[1757858913994,0.08,4624.8,4623.5,0.792]
[1757858914199,0.08,4624.8,4622.8,5.95519113]
[1757858914200,0.08,4624.8,4623.7,3.0]
[1757858914400,0.08,4624.8,4623.6,6.46879216]
[1757858914401,0.08,4624.8,4624.7,2.45520241]
[1757858914599,0.08,4624.8,4624.7,7.67186641]
[1757858914797,0.8341,4624.8,4624.7,7.67286641]
[1757858915000,0.08,4624.8,4624.7,8.46426641]
[1757858915244,0.08,4624.8,4624.7,10.76203169]
[1757858915398,0.08,4624.8,4624.7,10.87192804]
[1757858915600,0.08,4624.8,4624.7,13.42882804]
[1757858915802,0.4494,4626.6,4625.0,2.16216216]
[1757858916045,0.9307,4626.6,4625.1,4.39740137]
[1757858916333,0.08,4626.8,4625.5,2.16189991]
[1757858916626,0.08,4626.8,4625.6,5.521564]
[1757858916827,0.08,4626.8,4625.7,3.88418234]
[1757858917042,0.08,4626.8,4626.6,2.16141169]
[1757858917249,0.4494,4626.7,4626.6,3.668]
[1757858917400,0.4494,4626.7,4626.2,0.02161601]
[1757858917401,0.3047,4626.7,4626.2,0.02161601]
[1757858917600,0.3047,4626.7,4626.3,3.669]
[1757858917807,0.08,4626.8,4626.4,3.69061507]
[1757858918109,0.08,4626.8,4626.7,2.45426771]
[1757858918628,0.08,4626.8,4626.7,3.61612009]
[1757858918829,0.08,4626.8,4626.7,3.59450642]
[1757858919034,0.08,4626.8,4626.7,3.15140642]
[1757858919234,0.08,4628.8,4626.8,3.792]
[1757858919402,0.08,4628.8,4627.0,3.792]
[1757858919602,0.08,4628.8,4627.4,0.792]
[1757858919803,0.08,4628.8,4626.9,5.69197524]
[1757858919804,0.08,4628.8,4628.7,2.45333381]
[1757858920122,0.08,4628.8,4628.7,3.734]
[1757858920323,0.08,4628.8,4628.7,6.68583381]
[1757858920524,0.08,4628.8,4628.7,8.0157291]
[1757858921035,3.734,4631.3,4628.7,8.0157291]
[1757858921036,0.4494,4631.2,4629.4,0.792]
[1757858921198,0.4494,4631.2,4628.9,2.16034046]
[1757858921199,1.66,4631.7,4630.7,2.15950072]
[1757858921402,0.64815885,4632.5,4630.4,2.15959472]
[1757858921403,2.15894848,4631.9,4630.4,2.15959472]
[1757858921631,0.64815885,4632.5,4630.0,0.4985]
[1757858921632,0.4813,4632.1,4630.7,0.2929]
[1757858921835,0.4494,4631.9,4630.7,0.021595]
[1757858922065,0.4494,4631.4,4630.7,0.021595]
[1757858922263,0.08,4632.8,4630.7,0.021595]
[1757858922264,0.4813,4632.5,4630.7,2.4504]
[1757858922469,0.08,4632.8,4630.7,1.659]
[1757858922470,0.4494,4631.4,4630.7,1.659]
[1757858922802,0.4813,4632.6,4630.8,2.15945409]
[1757858923076,0.5294,4632.8,4632.1,2.1588437]
[1757858923235,0.08,4632.8,4632.2,3.772]
[1757858923435,0.08,4632.8,4632.3,0.02158754]
[1757858923635,0.08,4632.8,4632.3,2.18033947]
[1757858923636,0.5294,4632.8,4632.3,2.18033947]
[1757858923867,0.5294,4632.8,4632.2,3.772]
[1757858923868,0.3047,4632.4,4631.7,1.659]
[1757858924072,0.4494,4632.3,4631.8,3.784]
[1757858924383,0.3047,4631.9,4631.0,1.659]
[1757858924548,0.3047,4631.9,4631.1,0.1072]
[1757858924549,0.4494,4631.8,4631.1,0.1072]
[1757858924732,0.3047,4631.2,4631.0,5.443]
[1757858925386,0.4494,4631.1,4631.0,3.784]
[1757858925700,0.7541,4631.1,4630.7,0.1072]
[1757858925898,0.7541,4631.1,4630.2,5.441]
[1757858925899,0.1072,4630.7,4630.2,5.441]
[1757858926045,0.1072,4630.7,4630.3,0.02159687]
[1757858926250,0.2901,4630.4,4629.9,0.1072]
[1757858926469,0.4584,4630.3,4629.9,0.1072]
[1757858926676,0.2901,4630.0,4629.9,0.1072]
[1757858927152,0.7485,4630.0,4629.5,5.44]
[1757858927351,0.4584,4629.9,4629.5,4.658]
[1757858927546,0.4584,4629.8,4629.5,4.658]
[1757858927748,0.2901,4629.6,4629.4,0.108]
[1757858927950,0.4584,4629.5,4629.4,0.108]
[1757858928177,0.2901,4629.6,4629.4,0.108]
[1757858928376,0.7485,4629.5,4628.8,0.08]
[1757858928591,0.108,4629.3,4628.8,2.24037427]
[1757858928754,0.108,4629.3,4628.8,5.24037427]
[1757858928954,0.5664,4629.3,4628.9,5.16032419]
[1757858929189,0.5664,4629.3,4628.8,3.08]
[1757858929488,0.2901,4628.9,4628.8,0.08]
[1757858929671,0.4584,4629.2,4628.8,0.10160387]
[1757858930055,0.4584,4629.2,4628.8,0.08]
[1757858930261,0.4584,4629.2,4629.1,2.16024713]
[1757858930461,0.7485,4629.2,4629.1,2.16024713]
[1757858930888,0.7485,4629.2,4629.1,2.1818496]
[1757858931991,0.7485,4629.2,4628.8,0.08]
[1757858932215,0.9313,4629.1,4628.8,0.08]
[1757858932481,0.4584,4630.4,4629.1,0.2975]
[1757858932651,0.4584,4630.4,4629.3,2.16014964]
[1757858932852,0.4877,4631.5,4629.4,0.4952]
[1757858933054,0.64828351,4631.7,4630.6,2.15954535]
[1757858933283,0.23082835,4631.6,4630.6,4.279]
[1757858933488,0.002,4631.8,4630.9,2.15940745]
[1757858933654,0.002,4631.8,4631.7,2.15903447]
[1757858933982,0.002,4631.8,4631.7,2.46983447]
[1757858934183,0.08,4632.8,4632.7,2.15856843]
[1757858934370,0.08,4632.8,4632.7,10.66815411]
[1757858934569,0.08,4632.8,4632.7,5.06566843]
[1757858934775,0.08,4632.8,4632.7,12.68866843]
[1757858934971,0.08,4634.8,4632.8,3.0]
[1757858935171,0.08,4634.8,4633.0,0.792]
[1757858935373,0.08,4634.8,4633.1,7.79388382]
[1757858935574,0.08,4634.8,4632.9,1.35301]
[1757858935774,0.08,4634.8,4630.4,2.15961652]
[1757858935775,2.15773006,4634.5,4632.4,1.81]
[1757858935956,2.15815352,4633.6,4632.5,3.0]
[1757858936156,0.3041,4632.6,4631.9,1.658]
[1757858936357,0.3041,4632.6,4631.2,2.64923075]
[1757858936660,2.15871396,4632.4,4631.1,1.658]
[1757858936866,0.3411414,4632.3,4631.0,3.835]
[1757858937083,0.4609,4632.5,4631.0,3.835]
[1757858937260,0.4609,4632.5,4631.5,2.15909229]
[1757858937463,0.4609,4632.5,4631.3,2.15919078]
[1757858937697,0.4609,4632.5,4631.0,3.835]
[1757858937698,2.61957223,4632.5,4631.2,2.15925563]
[1757858937859,0.31072722,4632.4,4631.0,3.835]
[1757858938205,0.31072722,4632.4,4631.5,2.15910828]
[1757858938410,0.4609,4632.3,4630.6,0.49]
[1757858938706,0.4609,4632.3,4630.8,0.08]
[1757858938885,0.75393091,4632.2,4630.8,3.08]
[1757858939073,2.15885076,4632.1,4630.8,5.23942745]
[1757858939274,0.4609,4632.2,4630.9,0.02159407]
[1757858939805,0.4609,4632.2,4630.9,2.18096685]
[1757858939960,0.4609,4632.2,4631.3,2.15919749]
[1757858940164,0.4609,4632.2,4631.4,0.02159174]
[1757858940412,0.4609,4632.2,4630.8,2.23944334]
[1757858940413,0.3041,4631.5,4630.8,0.08]
[1757858940615,1.657,4632.0,4630.9,0.02159407]
[1757858940779,1.657,4632.0,4630.8,0.08]
[1757858940780,1.657,4632.2,4631.5,2.15909705]
[1757858940975,1.657,4632.2,4631.3,2.15920294]
[1757858941181,1.657,4632.2,4631.4,2.15917125]
[1757858941375,1.657,4632.2,4631.5,2.15912345]
[1757858941612,1.657,4632.2,4631.3,2.15917483]
[1757858941817,2.08465641,4632.2,4631.4,2.15916864]
[1757858941993,1.657,4632.2,4631.5,2.15909289]
[1757858942310,1.657,4632.2,4631.4,2.15917086]
[1757858942311,0.002,4631.5,4631.4,2.15917086]
[1757858942517,0.002,4631.5,4631.1,0.1072]
[1757858942714,0.1092,4631.5,4630.8,0.1882]
[1757858942917,0.1092,4631.5,4630.9,0.02159407]
[1757858943118,0.1092,4631.5,4631.4,2.15917433]
[1757858943315,0.1092,4631.5,4631.2,2.1592325]
[1757858943615,0.1092,4631.5,4630.9,2.15937136]
[1757858943616,0.1092,4631.5,4630.9,2.15940745]
[1757858943814,0.1092,4631.5,4630.8,0.1882]
[1757858943981,0.1092,4631.5,4630.9,2.15940492]
[1757858944180,0.1092,4631.5,4630.9,2.15940745]
[1757858944399,0.1092,4631.5,4630.8,0.1882]
[1757858944608,0.1092,4631.5,4631.0,2.15936082]
[1757858944808,0.1092,4631.5,4631.3,2.15921664]
[1757858945014,0.1092,4631.5,4631.4,2.18076607]
[1757858945814,0.1092,4631.5,4631.0,2.1593504]
[1757858946123,0.1092,4631.5,4631.1,2.35779712]
[1757858946306,0.5701,4631.5,4631.2,0.19851287]
[1757858946692,0.5701,4631.5,4631.3,0.19851287]
[1757858947001,0.3041,4631.4,4630.9,2.15940745]
[1757858947317,0.1092,4631.5,4631.0,2.35832859]
[1757858947517,0.1092,4631.5,4631.1,0.19897196]
[1757858947726,0.1092,4631.5,4631.2,0.19897196]
[1757858947930,0.1092,4631.5,4631.3,0.19897196]
[1757858948138,0.1092,4631.5,4631.4,0.19897196]
[1757858948629,0.4133,4631.5,4631.4,0.19897196]
[1757858948832,1.3619,4631.5,4631.4,0.19897196]
[1757858948997,1.71399854,4631.5,4630.8,0.081]
[1757858949199,2.15922355,4631.3,4630.8,0.081]
[1757858949426,5.97327616,4631.2,4630.8,0.081]
[1757858949630,0.3041,4630.9,4630.8,0.081]
[1757858950033,3.41210745,4630.9,4630.8,0.081]
[1757858951597,1.2527,4630.9,4630.8,0.081]
[1757858952205,4.13471508,4630.9,4630.8,0.081]
[1757858952505,7.13471508,4630.9,4630.8,0.081]
[1757858953523,10.94171508,4630.9,4630.8,0.081]
[1757858956053,8.29160763,4630.9,4630.8,0.081]
[1757858956232,10.45101508,4630.9,4630.8,0.081]
[1757858956418,4.48760763,4630.9,4630.8,0.081]
[1757858956613,3.802,4630.9,4630.8,0.081]
[1757858958923,3.797,4630.9,4630.8,0.3818]
[1757858959842,3.797,4630.9,4630.8,0.8778]
[1757858960048,1.657,4632.2,4630.8,1.3405]
[1757858960344,3.797,4631.9,4631.4,2.15917433]
[1757858960559,0.1072,4631.8,4631.4,2.18076607]
[1757858960714,0.1072,4631.8,4631.4,3.44026607]
[1757858961236,0.002,4632.8,4631.4,7.23226607]
[1757858961435,0.002,4632.8,4631.4,11.01367433]
[1757858961607,0.00049334,4631.5,4631.4,12.5468933]
[1757858963245,0.00049334,4631.5,4631.4,8.7438933]
[1757858963444,0.00049334,4631.5,4631.4,12.5428933]
[1757858965521,0.00049334,4631.5,4631.4,12.5398933]
[1757858965948,0.00049334,4631.5,4631.4,8.7438933]
[1757858966221,0.00049334,4631.5,4631.4,7.4891933]
[1757858966447,0.00049334,4631.5,4631.4,11.2841933]
[1757858966842,0.00049334,4631.5,4631.4,7.4891933]
[1757858967046,0.00049334,4631.5,4630.8,0.081]
[1757858967356,0.00049334,4631.5,4630.5,0.496]
[1757858967357,3.438,4631.4,4628.8,0.08]
[1757858967560,3.0,4631.3,4629.1,2.16024235]
[1757858967757,3.0,4631.3,4628.8,0.08]
[1757858967758,0.3156,4629.2,4628.8,0.08]
[1757858968323,0.4375,4629.1,4628.8,0.08]
[1757858968522,0.4375,4629.9,4628.9,0.496]
[1757858968722,0.64384933,4631.2,4629.1,0.792]
[1757858968723,2.441,4630.5,4629.1,0.792]
[1757858968956,2.441,4630.5,4630.0,2.15979864]
[1757858969157,0.3156,4630.1,4629.4,2.16010128]
[1757858969345,0.7531,4630.1,4629.7,2.15996625]
[1757858969518,0.4375,4630.0,4629.8,0.0215992]
[1757858970128,0.4375,4630.0,4629.8,2.18151125]
[1757858970325,0.4945,4630.4,4629.8,2.18151125]
[1757858970326,3.4945,4630.4,4629.8,0.0215992]
[1757858970540,0.7531,4629.9,4629.0,2.16025841]
[1757858970767,0.7531,4629.9,4629.1,0.02160247]
[1757858971068,0.7531,4629.9,4629.2,2.16019994]
[1757858971254,0.108,4629.5,4629.3,0.02160153]
[1757858971562,0.108,4629.5,4628.9,2.18194261]
[1757858971858,0.108,4629.5,4628.9,0.50264038]
[1757858972036,0.5455,4629.5,4628.8,0.08]
[1757858972358,0.108,4629.5,4629.0,2.16024884]
[1757858972559,0.108,4629.5,4629.3,2.16015353]
[1757858972759,0.108,4629.5,4629.4,2.18170821]
[1757858972962,0.1072,4629.9,4629.5,2.16006048]
[1757858973159,0.1072,4629.9,4629.6,0.02160013]
[1757858973668,0.3156,4629.7,4628.9,3.794]
[1757858973969,0.108,4629.6,4628.9,2.70197401]
[1757858974196,0.5455,4629.6,4628.9,0.54165554]
[1757858974365,0.5455,4629.6,4628.9,0.108]
[1757858974736,0.108,4629.2,4628.8,0.08]
[1757858975164,0.108,4629.2,4628.9,2.1603341]
[1757858975349,0.108,4629.2,4628.9,2.16034046]
[1757858975545,0.108,4629.2,4628.8,0.08]
[1757858975772,0.5455,4629.2,4628.8,0.08]
[1757858976277,0.5455,4629.2,4629.1,2.16024713]
[1757858976478,0.108,4629.2,4628.9,2.16030258]
[1757858976769,0.108,4629.2,4628.8,0.08]
[1757858976976,0.5455,4629.2,4628.8,2.240349]
[1757858977147,0.5455,4629.2,4629.0,2.16028537]
[1757858977348,0.108,4629.2,4628.9,2.16034046]
[1757858977548,0.108,4629.2,4629.1,2.46104713]
[1757858977753,0.108,4629.6,4629.3,2.16014903]
[1757858978406,0.108,4629.6,4629.4,2.1601047]
[1757858978605,0.108,4629.6,4629.5,2.16006048]
[1757858978983,0.108,4629.6,4629.1,0.30704576]
[1757858979179,0.108,4629.6,4629.5,2.16006048]
[1757858979398,0.4236,4629.6,4629.5,2.16006048]
[1757858979597,0.108,4629.6,4629.5,2.16006048]
[1757858979808,0.108,4629.6,4629.3,0.001]
[1757858980208,0.108,4629.6,4629.4,2.16006742]
[1757858980407,0.108,4629.6,4629.5,2.16006048]
[1757858984719,0.108,4629.6,4629.4,0.02160107]
[1757858984886,0.4236,4629.6,4629.3,0.001]
[1757858985094,0.8611,4629.6,4629.3,2.16115318]
[1757858985316,0.8611,4629.6,4629.3,0.001]
[1757858985727,0.8611,4629.6,4629.3,2.16115217]
[1757858986109,0.4236,4629.6,4629.3,0.001]
[1757858986435,0.9279,4629.5,4629.3,0.001]
[1757858986645,1.05225,4629.5,4629.3,0.001]
[1757858986819,1.2413,4629.4,4629.3,0.001]
[1757858987531,0.3134,4629.4,4629.3,0.001]
[1757858988396,1.657,4630.0,4629.3,0.001]
[1757858988601,0.108,4629.7,4629.5,2.16004916]
[1757858988801,0.108,4629.7,4629.3,2.65850742]
[1757858989024,0.108,4629.7,4629.3,0.4984]
[1757858989274,0.108,4629.7,4629.3,0.001]
[1757858989442,0.5708,4629.7,4629.3,0.001]
[1757858990005,0.5708,4629.7,4629.3,2.16115004]
[1757858990207,0.5708,4629.7,4629.3,0.001]
[1757858990408,0.5708,4629.7,4629.3,2.16111364]